bitfinex/quotes_ETHUSD_20250905
["timestamp","ask_amount","ask_price","bid_price","bid_amount"]
[1757086235520,8.11477183,4297.8,4297.7,1e-08]
[1757086235733,4.19960411,4297.8,4297.7,1e-08]
[1757086235939,4.19960411,4297.8,4297.7,0.31010001]
[1757086236141,8.29660411,4297.8,4297.7,0.81450001]
[1757086237659,8.29660411,4297.8,4297.7,1e-08]
[1757086238156,8.60470411,4297.8,4297.7,1e-08]
[1757086238741,9.03240411,4297.8,4297.7,1e-08]
[1757086239548,8.60470411,4297.8,4297.7,1e-08]
[1757086239749,8.29660411,4297.8,4297.7,1e-08]
[1757086240459,8.29260411,4297.8,4297.7,1e-08]
[1757086240873,8.28860411,4297.8,4297.7,0.29950001]
[1757086242669,8.28860411,4297.8,4297.7,1e-08]
[1757086243598,1.87283228,4297.8,4297.7,0.29950001]
[1757086243770,5.95683228,4297.8,4297.7,1.25430001]
[1757086243951,8.28360411,4297.8,4297.7,1.25430001]
[1757086244598,8.28360411,4297.8,4297.7,0.79130001]
[1757086244782,8.28360411,4297.8,4297.7,1e-08]
[1757086245255,4.19960411,4297.8,4297.7,1.25430001]
[1757086245451,8.28460411,4297.8,4297.7,0.79130001]
[1757086246184,8.57530411,4297.8,4297.7,1e-08]
[1757086246385,9.01860411,4297.8,4297.7,1e-08]
[1757086246791,8.28380411,4297.8,4297.7,1e-08]
[1757086248153,8.57450411,4297.8,4297.7,1e-08]
[1757086248461,8.27980411,4297.8,4297.7,1e-08]
[1757086248664,8.27980411,4297.8,4297.7,0.29950001]
[1757086248883,8.27980411,4297.8,4297.7,0.79130001]
[1757086249384,8.27880411,4297.8,4297.7,0.79130001]
[1757086250450,8.27880411,4297.8,4297.7,0.49180001]
[1757086250884,8.27880411,4297.8,4297.7,0.79130001]
[1757086251058,4.19880411,4297.8,4297.7,0.79130001]
[1757086251387,8.27580411,4297.8,4297.7,1.00727871]
[1757086251789,4.19880411,4297.8,4297.7,1.00727871]
[1757086252175,8.27380411,4297.8,4297.7,1.00727871]
[1757086252371,8.27280411,4297.8,4297.7,1.00727871]
[1757086252577,0.15883228,4297.8,4297.7,3.33410468]
[1757086252778,0.15883228,4297.8,4297.7,7.43277223]
[1757086253081,0.15883228,4297.8,4297.7,7.40950398]
[1757086253287,0.15883228,4297.8,4297.7,21.90950398]
[1757086254685,0.15883228,4297.8,4297.7,22.70150398]
[1757086254882,0.15883228,4297.8,4297.7,22.81750398]
[1757086255186,0.025,4298.8,4298.6,2.32632651]
[1757086255388,0.025,4298.8,4298.7,0.44861135]
[1757086255690,0.025,4298.8,4298.7,0.5154787]
[1757086255864,2.35123057,4298.8,4298.7,0.2159787]
[1757086256459,0.025,4298.8,4298.7,0.2159787]
[1757086256657,2.35123057,4298.8,4298.7,0.2159787]
[1757086256857,6.42223057,4298.8,4298.7,0.2159787]
[1757086257058,6.71293057,4298.8,4298.7,0.2159787]
[1757086257286,7.15703057,4298.8,4298.7,0.2159787]
[1757086258098,6.42223057,4298.8,4298.7,0.2159787]
[1757086261376,7.12957183,4297.8,4297.7,1e-08]
[1757086261565,6.68547183,4297.8,4297.7,1e-08]
[1757086261902,6.39477183,4297.8,4297.7,1e-08]
[1757086262110,7.12957183,4297.8,4297.7,1e-08]
[1757086262478,7.62457183,4297.8,4297.7,1e-08]
[1757086263905,10.62457183,4297.8,4297.7,1e-08]
[1757086264257,10.71785117,4297.8,4297.7,1e-08]
[1757086265215,3.0,4297.7,4297.3,1e-08]
[1757086265391,3.0,4297.7,4297.2,1e-08]
[1757086265392,3.0,4297.5,4297.2,1e-08]
[1757086265576,5.61774256,4297.3,4297.2,1e-08]
[1757086265967,6.55684256,4297.3,4297.2,1e-08]
[1757086266194,5.61774256,4297.3,4297.2,1e-08]
[1757086266504,6.39604256,4297.3,4297.2,1e-08]
[1757086266907,6.68674256,4297.3,4297.2,1e-08]
[1757086267071,7.13084256,4297.3,4297.2,1e-08]
[1757086267467,6.39604256,4297.3,4297.2,1e-08]
[1757086268299,6.68674256,4297.3,4297.2,1e-08]
[1757086268509,7.13084256,4297.3,4297.2,1e-08]
[1757086269770,7.64314256,4297.3,4297.2,1e-08]
[1757086270494,10.64314256,4297.3,4297.2,1e-08]
[1757086270804,9.68674256,4297.3,4297.2,1e-08]
[1757086271400,10.12434256,4297.3,4297.2,1e-08]
[1757086271794,9.68674256,4297.3,4297.2,0.10000001]
[1757086271994,5.61774256,4297.3,4297.2,0.10000001]
[1757086272178,9.68674256,4297.3,4297.2,0.10000001]
[1757086272812,9.39604256,4297.3,4297.2,0.10000001]
[1757086273788,9.70364256,4297.3,4297.2,0.10000001]
[1757086273986,10.14124256,4297.3,4297.2,0.10000001]
[1757086274187,10.14044256,4297.3,4297.2,0.10000001]
[1757086275088,10.65274256,4297.3,4297.2,0.10000001]
[1757086275284,10.65274256,4297.3,4296.6,0.004]
[1757086275285,2.32725918,4296.9,4296.6,0.004]
[1757086275488,9.39625918,4296.9,4296.6,0.004]
[1757086275711,10.14145918,4296.9,4296.6,0.004]
[1757086276309,10.14145918,4296.9,4296.7,0.004]
[1757086276519,5.63485918,4296.9,4296.7,0.004]
[1757086276811,9.39625918,4296.9,4296.8,0.3292]
[1757086277023,9.39625918,4296.9,4296.8,0.029]
[1757086277382,6.39625918,4296.9,4296.8,0.8535]
[1757086277794,6.39625918,4296.9,4296.8,0.029]
[1757086278178,6.70385918,4296.9,4296.8,0.029]
[1757086278375,7.14145918,4296.9,4296.8,0.029]
[1757086279412,10.65375918,4296.9,4296.8,1e-08]
[1757086280314,5.32731334,4296.8,4296.7,1e-08]
[1757086280686,6.07251334,4296.8,4296.7,1e-08]
[1757086280887,2.32736751,4296.7,4296.4,0.004]
[1757086281083,2.32747585,4296.5,4296.4,0.004]
[1757086281283,2.63507585,4296.5,4296.4,0.004]
[1757086281509,3.07267585,4296.5,4296.4,0.004]
[1757086281690,0.116,4296.4,4295.8,0.029]
[1757086282001,2.63540092,4295.9,4295.8,0.029]
[1757086282315,2.32780092,4295.9,4295.8,0.029]
[1757086282484,6.39680092,4295.9,4295.8,0.029]
[1757086282686,7.14200092,4295.9,4295.8,0.029]
[1757086282906,2.63540092,4295.9,4295.8,0.029]
[1757086283108,6.70440092,4295.9,4295.8,0.029]
[1757086283433,7.14200092,4295.9,4295.8,0.029]
[1757086284216,10.14200092,4295.9,4295.8,0.029]
[1757086284822,10.65430092,4295.9,4295.8,0.029]
[1757086285196,10.65430092,4295.9,4295.8,1e-08]
[1757086285633,10.14200092,4295.9,4295.8,1e-08]
[1757086285836,6.07300092,4295.9,4295.8,1e-08]
[1757086285990,6.39680092,4295.9,4295.8,1e-08]
[1757086286196,6.70440092,4295.9,4295.8,1e-08]
[1757086286439,6.39680092,4295.9,4295.8,1e-08]
[1757086286597,6.39680092,4295.9,4295.8,0.30020001]
[1757086286598,6.39780092,4295.9,4295.8,0.30020001]
[1757086286792,2.32780092,4295.9,4295.8,0.30020001]
[1757086287188,6.39680092,4295.9,4295.8,0.30020001]
[1757086287419,6.70540092,4295.9,4295.8,1e-08]
[1757086287616,10.14300092,4295.9,4295.8,1e-08]
[1757086287814,10.65530092,4295.9,4295.8,1e-08]
[1757086288602,10.14300092,4295.9,4295.8,1e-08]
[1757086288922,5.63540092,4295.9,4295.8,1e-08]
[1757086289225,10.14300092,4295.9,4295.8,1e-08]
[1757086290395,9.39780092,4295.9,4295.8,1e-08]
[1757086290596,9.70540092,4295.9,4295.8,1e-08]
[1757086291008,9.39780092,4295.9,4295.8,1e-08]
[1757086291204,2.32780092,4295.9,4295.8,1e-08]
[1757086291404,6.70540092,4295.9,4295.8,1e-08]
[1757086291597,7.14300092,4295.9,4295.8,1e-08]
[1757086291912,6.39780092,4295.9,4295.8,1e-08]
[1757086292496,6.70540092,4295.9,4295.8,1e-08]
[1757086292694,10.14300092,4295.9,4295.8,1e-08]
[1757086292915,9.70540092,4295.9,4295.8,1e-08]
[1757086293295,9.39780092,4295.9,4295.8,0.30020001]
[1757086293630,9.39680092,4295.9,4295.8,0.82450001]
[1757086293924,9.39680092,4295.9,4295.8,0.30020001]
[1757086294135,9.70440092,4295.9,4295.8,1e-08]
[1757086294300,10.14200092,4295.9,4295.8,1e-08]
[1757086294497,10.65430092,4295.9,4295.8,1e-08]
[1757086295068,10.14200092,4295.9,4295.8,1e-08]
[1757086295969,2.32807189,4295.4,4295.3,1e-08]
[1757086296113,9.39707189,4295.4,4295.3,1e-08]
[1757086296310,11.44657189,4295.4,4295.3,1e-08]
[1757086296519,2.32834291,4294.9,4294.8,0.025]
[1757086296831,9.39734291,4294.9,4294.8,1e-08]
[1757086297031,9.70494291,4294.9,4294.8,1e-08]
[1757086297245,10.14254291,4294.9,4294.8,1e-08]
[1757086297539,10.65484291,4294.9,4294.8,1e-08]
[1757086299248,12.04844981,4294.9,4294.8,1e-08]
[1757086299456,11.75156372,4294.9,4294.8,1e-08]
[1757086299979,7.68256372,4294.9,4294.8,1e-08]
[1757086300182,10.92874291,4294.9,4294.8,1e-08]
[1757086300547,11.04140627,4294.9,4294.8,1e-08]
[1757086300968,10.24940627,4294.9,4294.8,1e-08]
[1757086301882,10.24860627,4294.9,4294.8,1e-08]
[1757086302046,11.04060627,4294.9,4294.8,1e-08]
[1757086302249,11.53210627,4294.9,4294.8,1e-08]
[1757086302670,7.46310627,4294.9,4294.8,1e-08]
[1757086302979,6.97160627,4294.9,4294.8,1e-08]
[1757086303186,11.04060627,4294.9,4294.8,1e-08]
[1757086303847,11.53210627,4294.9,4294.8,1e-08]
[1757086304749,11.53210627,4294.9,4292.8,0.025]
[1757086304750,0.792,4294.8,4293.3,0.4929]
[1757086304977,2.32915637,4293.4,4293.3,0.4929]
[1757086305181,0.116,4293.3,4292.8,0.025]
[1757086305380,2.32942765,4292.9,4292.8,0.025]
[1757086305584,6.39842765,4292.9,4292.8,0.025]
[1757086305784,6.39842765,4292.9,4292.8,0.3409]
[1757086305983,6.39842765,4292.9,4292.8,0.8338]
[1757086306354,6.39842765,4292.9,4292.8,0.3409]
[1757086306686,6.39842765,4292.9,4292.8,0.025]
[1757086306887,6.39842765,4292.9,4292.8,0.3409]
[1757086307083,6.39842765,4292.9,4292.8,0.8338]
[1757086307285,2.32942765,4292.9,4292.8,0.8338]
[1757086307483,2.32942765,4292.9,4292.8,1.2697]
[1757086307784,4.07,4292.9,4292.8,1.2697]
[1757086307951,6.51542765,4292.9,4292.8,1.2697]
[1757086309302,0.11347965,4293.6,4292.8,1.39667]
[1757086309587,0.116,4293.4,4292.9,0.9288]
[1757086309772,0.116,4292.9,4292.8,0.025]
[1757086309975,6.51542765,4292.9,4292.8,0.3409]
[1757086310375,6.51542765,4292.9,4292.8,0.8338]
[1757086310968,6.51542765,4292.9,4292.8,0.025]
[1757086311383,6.81222765,4292.9,4292.8,0.025]
[1757086311584,6.93114164,4292.9,4292.8,0.025]
[1757086311786,7.36294164,4292.9,4292.8,0.025]
[1757086312182,6.93114164,4292.9,4292.8,0.025]
[1757086312476,10.36294164,4292.9,4292.8,1e-08]
[1757086312802,9.81222765,4292.9,4292.8,1e-08]
[1757086312969,9.51542765,4292.9,4292.8,1e-08]
[1757086313165,9.51542765,4292.9,4292.8,0.80880001]
[1757086313166,9.39942765,4292.9,4292.8,0.80880001]
[1757086313373,9.39942765,4292.9,4292.8,1e-08]
[1757086313887,9.39942765,4292.9,4292.8,0.00400001]
[1757086314373,10.12802765,4292.9,4292.8,0.00400001]
[1757086314890,9.39942765,4292.9,4292.8,0.00400001]
[1757086315090,9.39942765,4292.9,4292.8,0.31990001]
[1757086315570,5.32942765,4292.9,4292.8,0.31990001]
[1757086315767,9.39942765,4292.9,4292.8,0.31990001]
[1757086315985,9.39942765,4292.9,4292.8,0.00400001]
[1757086316205,5.32942765,4292.9,4292.8,0.00400001]
[1757086316406,9.39942765,4292.9,4292.8,0.31990001]
[1757086316874,9.39942765,4292.9,4292.8,0.00400001]
[1757086318089,9.69622765,4292.9,4292.8,0.00400001]
[1757086318475,10.12802765,4292.9,4292.8,0.00400001]
[1757086318905,9.39942765,4292.9,4292.8,0.00400001]
[1757086319107,5.32942765,4292.9,4292.8,0.00400001]
[1757086319411,2.32942765,4292.9,4292.8,0.81280001]
[1757086319611,6.39942765,4292.9,4292.8,0.81280001]
[1757086319972,6.39942765,4292.9,4292.8,0.00400001]
[1757086320172,6.39942765,4292.9,4292.8,0.81280001]
[1757086320408,2.32942765,4292.9,4292.8,0.81280001]
[1757086320601,6.39942765,4292.9,4292.8,0.81280001]
[1757086321813,6.69622765,4292.9,4292.8,0.00400001]
[1757086322003,7.12802765,4292.9,4292.8,0.00400001]
[1757086322174,6.69622765,4292.9,4292.8,0.00400001]
[1757086322600,9.69622765,4292.9,4292.8,0.00400001]
[1757086322799,10.12802765,4292.9,4292.8,0.00400001]
[1757086323193,10.61952765,4292.9,4292.8,1e-08]
[1757086323399,6.05802765,4292.9,4292.8,1e-08]
[1757086323621,10.12802765,4292.9,4292.8,1e-08]
[1757086324848,10.61952765,4292.9,4292.8,1e-08]
[1757086325327,10.12802765,4292.9,4292.8,1e-08]
[1757086326828,6.05802765,4292.9,4292.8,1e-08]
[1757086327128,10.12802765,4292.9,4292.8,1e-08]
[1757086327830,2.32942765,4292.9,4292.8,0.31590001]
[1757086328042,6.39942765,4292.9,4292.8,0.49290001]
[1757086328345,6.39942765,4292.9,4292.8,1e-08]
[1757086328666,6.39942765,4292.9,4292.8,0.31590001]
[1757086328957,6.39942765,4292.9,4292.8,0.80880001]
[1757086329137,2.32942765,4292.9,4292.8,0.80880001]
[1757086329314,6.39942765,4292.9,4292.8,1e-08]
[1757086329511,1.716,4293.1,4292.8,1.21540001]
[1757086329742,6.39937339,4293.0,4292.8,0.30230001]
[1757086329964,2.63572765,4292.9,4292.8,1e-08]
[1757086330159,3.07722765,4292.9,4292.8,1e-08]
[1757086330727,2.32862765,4292.9,4292.8,0.30230001]
[1757086330928,6.39862765,4292.9,4292.8,0.99139162]
[1757086331157,6.39862765,4292.9,4292.8,1e-08]
[1757086331343,6.39862765,4292.9,4292.8,0.21731372]
[1757086331543,6.39862765,4292.9,4292.8,1e-08]
[1757086332125,6.70572765,4292.9,4292.8,1e-08]
[1757086332319,7.14722765,4292.9,4292.8,1e-08]
[1757086333051,6.39962765,4292.9,4292.8,1e-08]
[1757086333349,6.70672765,4292.9,4292.8,1e-08]
[1757086333553,7.14822765,4292.9,4292.8,1e-08]
[1757086333751,6.70672765,4292.9,4292.8,1e-08]
[1757086333952,6.39962765,4292.9,4292.8,0.30230001]
[1757086334178,6.39962765,4292.9,4292.8,1e-08]
[1757086334752,7.14822765,4292.9,4292.8,1e-08]
[1757086335114,10.14822765,4292.9,4292.8,1e-08]
[1757086335319,2.32991612,4292.0,4291.8,1e-08]
[1757086335559,8.1159704,4291.9,4291.8,1e-08]
[1757086335718,11.8645704,4291.9,4291.8,1e-08]
[1757086335918,11.4230704,4291.9,4291.8,1e-08]
[1757086336118,11.8645704,4291.9,4291.8,1e-08]
[1757086336657,2.33040479,4291.1,4291.0,1e-08]
[1757086336857,9.40040479,4291.1,4291.0,1e-08]
[1757086337752,9.70750479,4291.1,4291.0,1e-08]
[1757086338253,10.14900479,4291.1,4291.0,1e-08]
[1757086338828,11.60684493,4291.1,4291.0,1e-08]
[1757086339021,2.33051341,4290.9,4290.8,1e-08]
[1757086339251,9.40051341,4290.9,4290.8,1e-08]
[1757086339428,10.14911341,4290.9,4290.8,1e-08]
[1757086340260,9.40051341,4290.9,4290.8,1e-08]
[1757086340632,10.14911341,4290.9,4290.8,1e-08]
[1757086340823,10.94111341,4290.9,4290.8,1e-08]
[1757086341028,11.43301341,4290.9,4290.8,1e-08]
[1757086341229,11.43301341,4290.9,4289.8,0.025]
[1757086341230,3.792,4290.8,4289.8,0.025]
[1757086341442,2.33105666,4289.9,4289.8,0.025]
[1757086341642,6.70815666,4289.9,4289.8,0.025]
[1757086341971,6.70815666,4289.9,4288.8,0.025]
[1757086341972,2.33138274,4289.3,4288.8,0.025]
[1757086342132,3.0,4289.0,4286.6,0.25]
[1757086342331,2.33268795,4286.9,4286.4,2.5488589]
[1757086342629,6.40268795,4286.9,4286.4,2.5488589]
[1757086342825,2.33268795,4286.9,4286.8,0.3273]
[1757086343026,1.717,4287.2,4286.8,1.2404]
[1757086343230,1.717,4287.2,4286.9,0.4718]
[1757086343231,3.03396877,4287.0,4286.9,0.4718]
[1757086343432,0.70133523,4287.0,4286.9,0.7741]
[1757086343832,4.77133523,4287.0,4286.9,1.2154]
[1757086344169,4.04953175,4287.2,4286.9,1.2154]
[1757086344465,1.717,4287.2,4287.0,0.9131]
[1757086344656,0.70121228,4287.3,4287.0,0.12404]
[1757086344829,2.635,4287.5,4287.1,0.3023]
[1757086345162,4.071,4287.6,4287.2,0.9131]
[1757086345466,4.071,4287.8,4287.5,0.3023]
[1757086345764,0.116,4287.7,4287.6,0.9131]
[1757086345943,0.116,4287.7,4287.6,1.2154]
[1757086346465,4.071,4287.9,4287.6,5.35248481]
[1757086346630,4.187,4288.1,4287.7,0.9131]
[1757086346832,4.187,4288.1,4287.6,4.43938481]
[1757086346833,0.116,4288.1,4288.0,0.3023]
[1757086347032,0.11357919,4288.7,4288.0,0.3023]
[1757086347232,0.11357919,4288.7,4288.0,0.7741]
[1757086347473,2.3319264,4288.3,4288.1,0.4718]
[1757086347630,0.70109183,4288.5,4287.9,2.33210931]
[1757086347832,0.11357919,4288.7,4288.5,2.33181765]
[1757086348027,0.025,4288.8,4288.7,2.3317089]
[1757086348433,0.025,4288.8,4288.7,15.7154]
[1757086348642,0.025,4288.8,4288.7,15.2741]
[1757086348846,2.35665454,4288.8,4288.7,0.7741]
[1757086349349,0.025,4288.8,4288.7,0.7741]
[1757086349551,0.025,4288.8,4288.2,14.5]
[1757086349753,0.025,4288.8,4288.2,15.65720339]
[1757086349954,2.35665454,4288.8,4288.7,0.3023]
[1757086350279,2.33191937,4288.4,4288.2,14.9718]
[1757086350448,2.3318974,4288.4,4288.2,14.9718]
[1757086350783,4.081,4288.6,4288.3,1.2154]
[1757086350942,2.33181765,4288.5,4288.4,0.4718]
[1757086351139,4.081,4288.6,4288.5,0.4718]
[1757086351343,4.081,4288.6,4288.1,0.004]
[1757086351575,2.33198078,4288.2,4288.1,0.4758]
[1757086351871,6.41298078,4288.2,4288.1,0.004]
[1757086352076,5.33203516,4288.1,4287.6,0.004]
[1757086352242,7.2211376,4288.1,4287.6,0.004]
[1757086352444,2.63935272,4287.7,4287.6,0.004]
[1757086352750,6.41925272,4287.7,4287.6,0.004]
[1757086352962,6.72635272,4287.7,4287.6,0.004]
[1757086353166,7.16785272,4287.7,4287.6,0.004]
[1757086354274,7.65975272,4287.7,4287.6,1e-08]
[1757086354579,7.16785272,4287.7,4287.6,1e-08]
[1757086354882,6.41725272,4287.7,4287.6,1e-08]
[1757086355272,7.16585272,4287.7,4287.6,1e-08]
[1757086355971,6.41625272,4287.7,4287.6,1e-08]
[1757086356399,2.33224726,4287.8,4287.6,0.30230001]
[1757086356610,2.33210758,4288.0,4287.6,0.30230001]
[1757086356611,4.083,4287.7,4287.6,0.77410001]
[1757086356770,2.33225272,4287.7,4287.6,0.77410001]
[1757086356971,6.41522802,4287.8,4287.6,0.77410001]
[1757086357276,3.70121556,4288.3,4287.6,1.33694001]
[1757086357277,0.70121556,4288.3,4287.6,1.33694001]
[1757086357479,0.116,4288.2,4287.7,0.9131]
[1757086357691,0.116,4288.2,4288.1,0.3023]
[1757086357998,0.1152,4288.2,4288.1,0.3023]
[1757086358195,0.025,4288.8,4288.3,3.0]
[1757086358364,0.025,4288.8,4288.7,0.3023]
[1757086358794,0.025,4288.8,4288.7,3.5471089]
[1757086359496,0.025,4288.8,4288.7,18.0471089]
[1757086360104,0.025,4288.8,4288.7,15.7154]
[1757086360283,0.025,4288.8,4288.7,18.76098018]
[1757086361112,0.025,4288.8,4288.7,15.98797128]
[1757086361310,0.025,4288.8,4288.7,15.2741]
[1757086361473,0.025,4288.8,4288.4,4.58574]
[1757086361474,0.025,4288.8,4288.4,0.50074]
[1757086361668,2.356671,4288.8,4288.1,2.84262672]
[1757086361889,2.33171815,4288.7,4288.1,0.5106]
[1757086362089,2.33176402,4288.6,4288.1,0.5106]
[1757086362308,2.33191785,4288.4,4288.1,0.5106]
[1757086362578,2.33181351,4288.6,4288.2,14.5]
[1757086362784,0.025,4288.8,4288.2,15.0106]
[1757086363002,2.33187059,4288.5,4288.2,15.0106]
[1757086363196,2.33183365,4288.5,4288.2,15.0106]
[1757086363376,2.3318728,4288.4,4288.2,15.0106]
[1757086363577,0.025,4288.8,4287.7,6.7533]
[1757086363766,0.025,4288.8,4288.3,0.3141]
[1757086363972,0.025,4288.8,4287.9,14.5]
[1757086364474,2.33171369,4288.7,4288.0,0.5106]
[1757086364781,2.33172396,4288.7,4288.0,0.5106]
[1757086364981,0.025,4288.8,4288.7,2.3317089]
[1757086365177,0.025,4288.8,4288.7,2.82946933]
[1757086365503,0.025,4288.8,4288.7,1.32246043]
[1757086365702,0.025,4288.8,4288.7,3.65416933]
[1757086365904,0.025,4288.8,4288.7,1.76416043]
[1757086366106,0.025,4288.8,4288.7,1.32246043]
[1757086366307,0.025,4288.8,4288.7,1.2664]
[1757086366808,0.025,4288.8,4288.7,3.5981089]
[1757086367106,0.025,4288.8,4288.7,1.2664]
[1757086367526,0.025,4288.8,4288.7,0.8247]
[1757086367730,0.025,4288.8,4288.1,0.5106]
[1757086367871,0.025,4288.8,4288.2,4.079]
[1757086368075,0.116,4288.4,4288.2,4.53796]
[1757086368381,0.116,4288.4,4288.3,0.3141]
[1757086368987,0.116,4288.4,4288.2,0.5106]
[1757086369975,0.116,4288.4,4288.3,0.3141]
[1757086370508,0.025,4288.8,4288.3,3.15659162]
[1757086370706,0.141,4288.8,4288.4,0.9523]
[1757086370879,0.141,4288.8,4288.5,0.5106]
[1757086371215,0.025,4288.8,4288.1,4.076]
[1757086371375,2.33182672,4288.5,4288.1,0.004]
[1757086371579,2.61848078,4288.2,4288.1,0.004]
[1757086372108,3.05098078,4288.2,4288.1,0.004]
[1757086374403,2.33215636,4287.9,4287.7,0.004]
[1757086374604,2.33210559,4288.0,4287.7,0.004]
[1757086375111,2.33214649,4287.9,4287.7,0.004]
[1757086375311,0.4325,4288.1,4287.7,0.004]
[1757086375509,2.61869833,4287.8,4287.7,0.004]
[1757086375710,3.05119833,4287.8,4287.7,0.004]
[1757086375909,2.33199043,4288.2,4287.7,0.004]
[1757086376112,2.33198078,4288.2,4287.7,0.004]
[1757086376316,0.09347334,4288.3,4287.7,0.004]
[1757086376317,2.33217244,4287.9,4287.7,0.004]
[1757086376514,2.33211369,4288.0,4287.7,0.004]
[1757086376841,0.09347334,4288.3,4288.2,0.3141]
[1757086377041,2.33173912,4288.7,4288.2,0.8247]
[1757086377187,2.35768142,4288.8,4287.7,0.4457]
[1757086377386,2.35768142,4288.8,4287.9,2.33210229]
[1757086377387,0.4325,4288.7,4287.9,2.33210229]
[1757086377596,2.33176979,4288.6,4287.9,2.33210229]
[1757086377912,0.4325,4288.7,4287.8,0.68570024]
[1757086378290,2.76421294,4288.7,4287.8,0.68570024]
[1757086378490,0.4325,4288.7,4287.8,0.68570024]
[1757086378754,2.7642454,4288.7,4287.9,2.78043806]
[1757086378929,0.026,4288.8,4288.6,0.3141]
[1757086380324,0.026,4288.8,4288.0,2.84267821]
[1757086380633,0.719,4288.7,4287.7,4.082]
[1757086380797,0.74016796,4288.6,4287.7,4.082]
[1757086381133,0.026,4288.8,4288.5,0.3141]
[1757086381296,0.026,4288.8,4288.5,0.8247]
[1757086381696,0.116,4288.7,4288.5,0.8247]
[1757086382530,0.116,4288.7,4288.5,0.3141]
[1757086382834,0.116,4288.7,4288.0,0.116]
[1757086382997,2.44771321,4288.7,4288.0,0.116]
[1757086383198,0.116,4288.7,4288.2,2.33194202]
[1757086383400,0.116,4288.7,4288.0,0.116]
[1757086383702,0.116,4288.7,4288.2,2.84257429]
[1757086383903,0.116,4288.7,4288.6,0.3141]
[1757086384303,2.33176327,4288.6,4287.6,1e-08]
[1757086384507,2.33247031,4287.3,4287.0,0.70088955]
[1757086384806,9.72497031,4287.3,4285.6,0.5106]
[1757086385061,10.65647031,4287.3,4285.6,2.84395284]
[1757086385344,10.75297621,4287.3,4285.6,0.5106]
[1757086385541,10.75217621,4287.3,4285.6,0.5106]
[1757086385755,0.792,4287.1,4285.1,0.5106]
[1757086385908,6.12468795,4286.9,4285.1,0.5106]
[1757086386114,6.41118795,4286.9,4285.1,0.5106]
[1757086386433,11.45168795,4286.9,4285.1,0.5106]
[1757086387415,7.34268795,4286.9,4285.1,0.5106]
[1757086387759,11.45168795,4286.9,4285.1,0.5106]
[1757086387922,7.34268795,4286.9,4285.1,0.5106]
[1757086388256,11.44868795,4286.9,4285.1,0.5106]
[1757086388464,5.33268795,4286.9,4285.7,0.5106]
[1757086388618,4.106,4286.9,4286.1,0.5106]
[1757086388929,4.106,4286.9,4285.8,0.4667]
[1757086388930,7.15768795,4286.9,4285.8,0.025]
[1757086389561,10.62068795,4286.9,4285.8,0.025]
[1757086390461,3.0,4286.8,4285.8,0.025]
[1757086390757,2.33305954,4286.3,4285.8,0.025]
[1757086391059,2.33313363,4286.1,4285.8,0.025]
[1757086391219,0.4363,4286.9,4285.8,0.4844]
[1757086391412,0.5106,4286.2,4285.8,0.4844]
[1757086391644,0.5106,4286.2,4285.9,0.4594]
[1757086391849,0.5106,4286.2,4285.8,0.025]
[1757086391850,4.108,4286.8,4286.1,0.3059]
[1757086392165,2.33284727,4286.7,4286.1,0.3059]
[1757086392358,4.108,4286.7,4286.1,0.3059]
[1757086392595,0.70131719,4286.5,4286.1,0.3059]
[1757086392955,4.108,4286.7,4286.2,0.4594]
[1757086393154,1.718,4287.3,4286.3,0.4594]
[1757086393363,0.4344,4286.6,4286.3,0.4594]
[1757086393566,2.33290777,4286.5,4285.7,0.4594]
[1757086393783,2.33290777,4286.5,4286.3,0.004]
[1757086393969,0.4363,4287.0,4286.3,0.004]
[1757086394165,2.33296005,4286.4,4286.3,0.004]
[1757086394385,2.33290563,4286.5,4286.3,0.004]
[1757086394549,3.07426005,4286.4,4286.3,0.004]
[1757086395283,2.63796005,4286.4,4286.3,0.004]
[1757086395588,6.43696005,4286.4,4286.3,0.004]
[1757086396258,4.104,4286.4,4286.3,0.004]
[1757086396483,6.43696005,4286.4,4286.3,0.004]
[1757086396690,4.104,4286.4,4286.3,0.004]
[1757086396853,4.104,4286.4,4286.3,0.3099]
[1757086397278,4.409,4286.4,4286.3,0.004]
[1757086397470,7.17826005,4286.4,4286.3,0.004]
[1757086398189,6.43696005,4286.4,4286.3,0.004]
[1757086398486,6.74196005,4286.4,4286.3,0.004]
[1757086398691,7.17826005,4286.4,4286.3,0.004]
[1757086398991,7.17326005,4286.4,4286.3,0.004]
[1757086399161,7.63626005,4286.4,4286.3,0.004]
[1757086399659,10.63626005,4286.4,4286.3,0.004]
[1757086399855,10.63626005,4286.4,4284.8,0.025]
[1757086399856,0.792,4286.2,4284.8,0.025]
[1757086400174,6.12523222,4285.9,4284.8,0.025]
[1757086400352,6.43023222,4285.9,4284.8,0.025]
[1757086400555,7.32953222,4285.9,4284.8,0.025]
[1757086401089,2.33377675,4284.9,4284.8,0.025]
[1757086401303,6.43277675,4284.9,4284.8,0.025]
[1757086401500,7.63707675,4284.9,4284.8,0.025]
[1757086401856,6.43077675,4284.9,4284.8,0.025]
[1757086402089,1.719,4285.4,4284.8,0.3309]
[1757086402271,4.097,4285.3,4284.8,0.7903]
[1757086402672,4.102,4285.2,4284.9,0.4594]
[1757086402887,1.719,4285.4,4285.1,0.3059]
[1757086403088,4.102,4285.3,4285.2,0.4594]
[1757086403591,1.719,4286.4,4285.2,3.53328132]
[1757086403764,4.102,4286.3,4285.3,0.81272813]
[1757086404096,5.33355891,4285.3,4284.8,0.025]
[1757086404279,2.33377675,4284.9,4284.8,0.025]
[1757086404480,4.106,4284.9,4284.8,0.025]
[1757086404791,4.107,4284.9,4284.8,0.025]
[1757086405197,0.4363,4285.6,4284.8,0.3309]
[1757086405386,2.33341228,4285.6,4284.8,0.7903]
[1757086405586,0.4363,4286.1,4284.8,1.14616721]
[1757086405899,1.719,4286.4,4284.9,0.4594]
[1757086406101,2.793,4286.3,4285.3,2.33352129]